{"text_format":"3","workbook":"xlsx","n_sheets":2,"sheets":["התחלה","תקציב לחתונה"],"read":"whole","date_system":"1900"}

{"sheet":"התחלה","index":0,"n_rows":7,"n_cols":2,"rows_kept":7}
[null,"אודות תבנית זו"]
[null,"השתמש בתבנית זו כדי לרשום את הוצאות החתונה בפועל שלך על פריטים שונים ולעקוב אחריהם כנגד הכמויות המתוקצבות."]
[null,"הזן הוצאות על ביגוד, קישוטים, מתנות, פרחים, מוזיקה, צילום, קבלת פנים, נייר מכתבים, תחבורה ופריטי שונות בטבלאות המתאימות."]
[null,"סכום משוער וסכום הוצאות בפועל מחושבים באופן אוטומטי."]
[null,"הערה: "]
[null,"הוראות נוספות סופקו בעמודה A בגיליון העבודה 'תקציב חתונה'. טקסט זה הוסתר במכוון. כדי להסיר את הטקסט, בחר את עמודה A ולאחר מכן הקש DELETE. כדי לבטל את הסתרת הטקסט, בחר את עמודה A ולאחר מכן שנה את צבע הגופן."]
[null,"לקבלת מידע נוסף אודות טבלאות, הקש SHIFT ולאחר מכן F10 בתוך טבלה, בחר באפשרות 'טבלה' ולאחר מכן בחר 'טקסט חלופי'."]

{"sheet":"תקציב לחתונה","index":1,"n_rows":93,"n_cols":4,"rows_kept":93,"merged":[[0,1,0,3],[2,1,2,3],[6,1,6,3],[15,1,15,3],[25,1,25,3],[34,1,34,3],[43,1,43,3],[50,1,50,3],[59,1,59,3],[68,1,68,3],[77,1,77,3],[85,1,85,3]]}
[null,"תקציב לחתונה"]
[]
[null,"סך הכל הוצאות "]
[null,"פריט ","משוערת","בפועל"]
[null,"סה\"כ הוצאות ",{"$f":"SUM(ביגוד[[#Totals],[משוערת]],קישוטים[[#Totals],[משוערת]],מתנות[[#Totals],[משוערת]],פרחים[[#Totals],[משוערת]],מוזיקה[[#Totals],[משוערת]],צילום[[#Totals],[משוערת]],קבלת_פנים[[#Totals],[משוערת]],StationeryAndPrinting[[#Totals],[משוערת]],תחבורה[[#Totals],[משוערת]],הוצאות_אחרות[[#Totals],[משוערת]])","v":0},{"$f":"SUM(ביגוד[[#Totals],[בפועל]],קישוטים[[#Totals],[בפועל]],מתנות[[#Totals],[בפועל]],פרחים[[#Totals],[בפועל]],מוזיקה[[#Totals],[בפועל]],צילום[[#Totals],[בפועל]],קבלת_פנים[[#Totals],[בפועל]],StationeryAndPrinting[[#Totals],[בפועל]],תחבורה[[#Totals],[בפועל]],הוצאות_אחרות[[#Totals],[בפועל]],)","v":0}]
[]
[null,"ביגוד"]
[null,"פריט ","משוערת","בפועל"]
[null,"טבעת אירוסין"]
[null,"טבעות נישואין"]
[null,"שמלת כלה"]
[null,"הינומה"]
[null,"אחר:"]
[null,"סה\"כ ביגוד",{"$f":"SUBTOTAL(109,ביגוד[משוערת])","v":0},{"$f":"SUBTOTAL(109,ביגוד[בפועל])","v":0}]
[]
[null,"קישוטים"]
[null,"פריט ","משוערת","בפועל"]
[null,"פפיונים לכיסאות"]
[null,"סידור שולחן (לא כולל פרחים)"]
[null,"נרות"]
[null,"תאורה"]
[null,"בלונים"]
[null,"אחר:"]
[null,"סה\"כ קישוטים",{"$f":"SUBTOTAL(109,קישוטים[משוערת])","v":0},{"$f":"SUBTOTAL(109,קישוטים[בפועל])","v":0}]
[]
[null,"מתנות"]
[null,"פריט ","משוערת","בפועל"]
[null,"משתתפים"]
[null,"כלה וחתן"]
[null,"הורים"]
[null,"משתתפים אחרים"]
[null,"אחר:"]
[null,"סה\"כ מתנות",{"$f":"SUBTOTAL(109,מתנות[משוערת])","v":0},{"$f":"SUBTOTAL(109,מתנות[בפועל])","v":0}]
[]
[null,"פרחים"]
[null,"פריט ","משוערת","בפועל"]
[null,"זרים"]
[null,"פרחים לחליפה"]
[null,"צמידי פרחים"]
[null,"טקס"]
[null,"אחר:"]
[null,"סה\"כ פרחים",{"$f":"SUBTOTAL(109,פרחים[משוערת])","v":0},{"$f":"SUBTOTAL(109,פרחים[בפועל])","v":0}]
[]
[null,"מוזיקה"]
[null,"פריט ","משוערת","בפועל"]
[null,"מוזיקאים לטקס"]
[null,"להקה/די ג'יי"]
[null,"אחר:"]
[null,"סה\"כ מוזיקה",{"$f":"SUBTOTAL(109,מוזיקה[משוערת])","v":0},{"$f":"SUBTOTAL(109,מוזיקה[בפועל])","v":0}]
[]
[null,"צילום"]
[null,"פריט ","משוערת","בפועל"]
[null,"צילומים רשמיים"]
[null,"צילומי אורחים"]
[null,"הדפסים נוספים"]
[null,"אלבומי תמונות"]
[null,"אחר:"]
[null,"סה\"כ צילום",{"$f":"SUBTOTAL(109,צילום[משוערת])","v":0},{"$f":"SUBTOTAL(109,צילום[בפועל])","v":0}]
[]
[null,"קבלת פנים "]
[null,"פריט ","משוערת","בפועל"]
[null,"תשלומים לאולם האירועים"]
[null,"שולחנות וכיסאות"]
[null,"מזון"]
[null,"מפות"]
[null,"אחר:"]
[null,"סה\"כ קבלת פנים (לא כולל מוזיקה וקישוטים)",{"$f":"SUBTOTAL(109,קבלת_פנים[משוערת])","v":0},{"$f":"SUBTOTAL(109,קבלת_פנים[בפועל])","v":0}]
[]
[null,"ניירות מכתבים והדפסה"]
[null,"פריט ","משוערת","בפועל"]
[null,"הזמנות"]
[null,"הכרזות"]
[null,"כרטיסי תודה"]
[null,"נייר מכתבים אישי"]
[null,"אחר:"]
[null,"סה\"כ ניירות מכתבים/הדפסה",{"$f":"SUBTOTAL(109,StationeryAndPrinting[משוערת])","v":0},{"$f":"SUBTOTAL(109,StationeryAndPrinting[בפועל])","v":0}]
[]
[null,"תחבורה"]
[null,"פריט ","משוערת","בפועל"]
[null,"לימוזינות"]
[null,"חניה"]
[null,"מוניות"]
[null,"אחר:"]
[null,"סה\"כ תחבורה",{"$f":"SUBTOTAL(109,תחבורה[משוערת])","v":0},{"$f":"SUBTOTAL(109,תחבורה[בפועל])","v":0}]
[]
[null,"הוצאות אחרות"]
[null,"פריט ","משוערת","בפועל"]
[null,"רב"]
[null,"תשלום לרבנות"]
[null,"מארגן חתונה"]
[null,"ארוחת ערב לפני החתונה"]
[null,"אחר:"]
[null,"סה\"כ הוצאות אחרות",{"$f":"SUBTOTAL(109,הוצאות_אחרות[משוערת])","v":0},{"$f":"SUBTOTAL(109,הוצאות_אחרות[בפועל])","v":0}]